bitfinex/quotes_SOLUSD_20251201
["timestamp","ask_amount","ask_price","bid_price","bid_amount"]
[1764598420057,14.20375484,126.67,126.61,60.9965648]
[1764598420562,0.66,126.66,126.61,60.9965648]
[1764598420892,14.20375484,126.66,126.61,47.45280996]
[1764598421388,0.66,126.65,126.62,3.5]
[1764598422278,0.66,126.65,126.63,7.89702282]
[1764598427387,0.66,126.65,126.62,7.8976465]
[1764598427590,0.66,126.65,126.62,11.3976465]
[1764598428096,0.66,126.65,126.62,31.14176275]
[1764598428781,0.66,126.65,126.62,27.64176275]
[1764598429070,14.20375484,126.65,126.62,27.64176275]
[1764598429271,13.54375484,126.64,126.61,24.20680865]
[1764598429485,13.54375484,126.63,126.61,16.308864]
[1764598429683,13.54375484,126.63,126.6,0.2]
[1764598429684,22.35369976,126.62,126.6,0.2]
[1764598429886,13.54375484,126.61,126.6,0.2]
[1764598430079,14.20375484,126.61,126.6,0.2]
[1764598431371,30.91197003,126.61,126.6,0.2]
[1764598431990,50.79980729,126.61,126.56,0.2]
[1764598432194,13.54375484,126.58,126.56,0.2]
[1764598432410,13.54375484,126.59,126.56,8.10135091]
[1764598432574,14.20375484,126.59,126.56,8.10135091]
[1764598432772,13.54375484,126.58,126.56,0.2]
[1764598434073,14.20375484,126.58,126.56,0.2]
[1764598434597,0.66,126.57,126.56,0.2]
[1764598435375,5.53690253,126.58,126.56,0.2]
[1764598436089,5.55690253,126.57,126.56,0.2]
[1764598436687,18.02900902,126.57,126.55,0.2]
[1764598436898,18.02900902,126.57,126.52,0.2]
[1764598436899,14.36684745,126.56,126.52,0.2]
[1764598437208,13.68684745,126.53,126.52,0.2]
[1764598437584,14.36684745,126.53,126.52,0.2]
[1764598437784,22.27011149,126.53,126.52,0.2]
[1764598438403,30.99118327,126.53,126.52,0.2]
[1764598441282,8.80994492,126.53,126.52,0.2]
[1764598441489,17.11797431,126.54,126.52,0.2]
[1764598441812,17.79797431,126.54,126.52,0.2]
[1764598443188,17.39253221,126.55,126.52,0.2]
[1764598443388,13.59797431,126.53,126.52,0.2]
[1764598443787,14.27797431,126.53,126.52,0.2]
[1764598444189,23.08791923,126.55,126.52,8.10370159]
[1764598444509,0.68,126.54,126.52,8.10370159]
[1764598445104,22.40791923,126.53,126.52,0.2]
[1764598445312,25.92791923,126.53,126.52,0.2]
[1764598445497,26.60791923,126.53,126.52,0.2]
[1764598446411,34.51118327,126.53,126.52,0.2]
[1764598448603,34.65334484,126.53,126.52,0.2]
[1764598449815,34.51118327,126.53,126.52,0.2]
[1764598450202,0.68,126.53,126.52,0.2]
[1764598450401,8.80994492,126.54,126.52,0.2]
[1764598450708,30.99068401,126.54,126.52,0.2]
[1764598451106,23.08791923,126.54,126.52,0.2]
[1764598451298,30.99059917,126.54,126.52,0.2]
[1764598452411,26.06798118,126.54,126.52,0.2]
[1764598455993,0.68,126.53,126.52,0.2]
[1764598456595,26.06798118,126.54,126.52,0.2]
[1764598457311,18.16530124,126.54,126.52,0.2]
[1764598459626,9.48994492,126.54,126.52,0.2]
[1764598460230,0.68,126.54,126.52,8.10373869]
[1764598460395,3.80294697,126.54,126.52,8.10373869]
[1764598460807,0.71,126.53,126.52,8.10373869]
[1764598461409,11.93289189,126.56,126.52,8.71373869]
[1764598461804,0.71,126.55,126.52,8.71373869]
[1764598462125,0.71,126.55,126.52,8.10373869]
[1764598462528,12.64289189,126.56,126.52,8.71373869]
[1764598462827,12.64289189,126.56,126.52,8.10373869]
[1764598462828,3.83294697,126.55,126.52,8.10373869]
[1764598463009,3.12294697,126.54,126.52,8.10373869]
[1764598463207,3.83294697,126.54,126.52,8.10373869]
[1764598463433,0.71,126.54,126.52,8.10373869]
[1764598464802,3.83294697,126.54,126.52,8.10373869]
[1764598465422,0.71,126.54,126.52,8.10373869]
[1764598465627,3.83294697,126.54,126.52,8.10373869]
[1764598465850,3.12294697,126.53,126.52,0.2]
[1764598466124,0.67,126.53,126.52,0.2]
[1764598467726,12.60289189,126.53,126.52,0.2]
[1764598467917,12.74505346,126.53,126.52,0.2]
[1764598468118,20.6483175,126.53,126.52,0.2]
[1764598468324,8.95210649,126.52,126.51,0.2]
[1764598468629,12.74505346,126.52,126.51,0.2]
[1764598469401,12.74505346,126.52,126.5,0.2]
[1764598469601,40.47843093,126.51,126.5,0.2]
[1764598470022,0.14216157,126.49,126.44,0.10000001]
[1764598470224,11.93289189,126.47,126.44,0.10000001]
[1764598470725,3.12294697,126.46,126.44,0.10000001]
[1764598472043,15.44846247,126.47,126.44,0.10000001]
[1764598472201,7.54119031,126.47,126.44,0.10000001]
[1764598472403,3.12294697,126.46,126.44,0.10000001]
[1764598472823,3.12294697,126.45,126.44,0.10000001]
[1764598474032,3.12294697,126.46,126.44,0.10000001]
[1764598475213,3.12294697,126.47,126.44,0.77000001]
[1764598475630,3.12294697,126.47,126.44,8.67850822]
[1764598476926,3.12294697,126.47,126.44,8.00850822]
[1764598477625,11.03003642,126.47,126.44,8.00850822]
[1764598477918,3.12294697,126.47,126.44,0.10000001]
[1764598478123,3.80294697,126.47,126.44,0.10000001]
[1764598478816,0.68,126.47,126.44,0.10000001]
[1764598479216,14.54962412,126.48,126.44,0.10000001]
[1764598479413,15.22962412,126.48,126.44,0.77000001]
[1764598480225,12.61289189,126.47,126.44,0.10000001]
[1764598480927,11.93289189,126.47,126.44,0.77000001]
[1764598482531,19.84019617,126.47,126.44,0.77000001]
[1764598482921,20.52019617,126.47,126.44,0.10000001]
[1764598483434,19.84019617,126.47,126.44,0.10000001]
[1764598483638,0.68,126.46,126.44,0.10000001]
[1764598484016,16.7172492,126.47,126.44,0.10000001]
[1764598484332,6.64294697,126.48,126.44,8.00842226]
[1764598484512,0.68,126.47,126.44,0.10000001]
[1764598484712,0.68,126.47,126.44,0.77000001]
[1764598484914,12.1066796,126.48,126.44,0.77000001]
[1764598485118,0.68,126.47,126.44,0.77000001]
[1764598485515,0.68,126.47,126.44,8.67850663]
[1764598485924,0.68,126.47,126.44,8.00850663]
[1764598486429,0.68,126.47,126.44,8.67850663]
[1764598488532,0.68,126.47,126.44,0.10000001]
[1764598488533,8.58745505,126.47,126.44,0.10000001]
[1764598488734,11.71040202,126.47,126.44,0.10000001]
[1764598489034,17.39739997,126.47,126.44,0.77000001]
[1764598490233,17.39739997,126.47,126.44,0.10000001]
[1764598490446,0.68,126.46,126.44,0.10000001]
[1764598490820,8.80994492,126.49,126.45,3.79294697]
[1764598491230,9.48994492,126.49,126.46,0.67]
[1764598492331,17.39577643,126.49,126.46,8.57757927]
[1764598492730,9.48994492,126.5,126.47,0.67]
[1764598492942,0.68,126.5,126.47,0.67]
[1764598494045,0.68,126.5,126.47,8.57642168]
[1764598494747,8.58519237,126.5,126.46,8.57761818]
[1764598495051,0.68,126.5,126.46,8.57761818]
[1764598495350,0.68,126.5,126.46,28.34671512]
[1764598495745,0.68,126.5,126.46,27.67671512]
[1764598496049,0.68,126.5,126.48,7.90638836]
[1764598497939,0.68,126.5,126.47,8.57675592]
[1764598500926,11.93289189,126.49,126.45,7.90826413]
[1764598501325,0.68,126.48,126.45,8.62826413]
[1764598501541,11.02833735,126.5,126.46,0.72]
[1764598501734,0.68,126.49,126.46,0.72]
[1764598502446,0.68,126.49,126.45,28.39892447]
[1764598503040,7.90539038,126.5,126.46,3.84294697]
[1764598503230,7.90359274,126.53,126.49,3.12294697]
[1764598503635,8.58359274,126.53,126.49,3.84294697]
[1764598504152,3.12294697,126.56,126.5,3.84294697]
[1764598504329,0.68,126.55,126.51,3.12294697]
[1764598504529,0.68,126.55,126.51,0.72]
[1764598504870,8.80994492,126.54,126.5,7.90460519]
[1764598505152,11.93289189,126.54,126.5,7.90460519]
[1764598505352,0.68,126.53,126.5,7.90460519]
[1764598506042,8.58339786,126.53,126.49,7.9057633]
[1764598506250,8.58339786,126.53,126.49,11.74871027]
[1764598506450,0.68,126.52,126.49,11.74871027]
[1764598507050,0.68,126.52,126.49,7.9057633]
[1764598507241,8.58282346,126.54,126.5,3.84294697]
[1764598507547,8.58282346,126.54,126.51,3.84294697]
[1764598508147,8.58282346,126.54,126.51,7.90451304]
[1764598509345,0.68,126.53,126.51,7.90451304]
[1764598509585,7.32294697,126.53,126.49,27.66959835]
[1764598510058,0.68,126.52,126.49,7.9051901]
[1764598510351,6.64294697,126.53,126.49,8.6251901]
[1764598510555,3.52,126.53,126.49,8.6251901]
[1764598510758,0.68,126.52,126.49,8.6251901]
[1764598511053,0.68,126.52,126.45,3.84294697]
[1764598511054,8.80994492,126.49,126.45,3.84294697]
[1764598511242,8.80994492,126.49,126.46,0.72]
[1764598511427,9.48994492,126.49,126.46,0.72]
[1764598511630,9.48994492,126.49,126.44,0.10000001]
[1764598511631,0.68,126.48,126.44,11.13133362]
[1764598511943,8.80994492,126.5,126.46,3.12294697]
[1764598512254,8.80994492,126.5,126.45,3.84294697]
[1764598512255,9.48994492,126.5,126.45,3.84294697]
[1764598512561,9.48994492,126.5,126.46,3.12294697]
[1764598512762,8.80994492,126.5,126.46,3.84294697]
[1764598512938,0.68,126.49,126.46,0.72]
[1764598513261,0.68,126.49,126.46,11.75056007]
[1764598513471,8.80994492,126.46,126.44,0.10000001]
[1764598513772,3.12294697,126.46,126.44,0.10000001]
[1764598513935,3.80294697,126.46,126.44,0.10000001]
[1764598514255,9.48994492,126.46,126.44,0.10000001]
[1764598514446,0.68,126.45,126.44,0.10000001]
[1764598515567,22.28437444,126.45,126.44,0.10000001]
[1764598515976,25.80437444,126.45,126.44,0.10000001]
[1764598516267,13.00994492,126.45,126.44,0.10000001]
[1764598516636,20.91820905,126.45,126.44,0.10000001]
[1764598517264,25.80437444,126.45,126.44,0.10000001]
[1764598518058,20.91820905,126.45,126.44,0.10000001]
[1764598518258,13.00994492,126.45,126.44,0.10000001]
[1764598518562,20.91820905,126.45,126.44,0.10000001]
[1764598519665,13.00994492,126.45,126.44,0.10000001]
[1764598519843,20.91820905,126.45,126.44,0.10000001]
[1764598522069,25.80437444,126.45,126.44,0.10000001]
[1764598523359,12.10826413,126.45,126.44,0.10000001]
[1764598523661,16.99442952,126.45,126.44,0.10000001]
[1764598525168,12.10826413,126.45,126.44,0.10000001]
[1764598525366,4.2,126.45,126.44,0.10000001]
[1764598525572,9.08616539,126.45,126.44,0.10000001]
[1764598525954,8.80994492,126.4,126.39,0.2]
[1764598526171,17.35827188,126.4,126.39,0.2]
[1764598526471,18.02827188,126.4,126.39,0.2]
[1764598526643,16.308864,126.37,126.35,0.1]
[1764598526844,17.35827188,126.36,126.35,0.1]
[1764598527177,22.91443727,126.36,126.35,0.1]
[1764598527842,13.14210649,126.36,126.35,0.1]
[1764598528045,18.02827188,126.36,126.35,0.1]
[1764598529543,13.14210649,126.36,126.35,0.1]
[1764598529764,9.47994492,126.36,126.35,0.1]
[1764598529946,17.88611031,126.36,126.35,0.1]
[1764598531170,17.21611031,126.36,126.35,0.1]
[1764598531372,12.32994492,126.36,126.35,0.1]
[1764598531577,13.02994492,126.36,126.35,0.1]
[1764598532378,3.52,126.36,126.35,0.8]
[1764598532685,58.62994492,126.38,126.35,0.8]
[1764598532884,59.32994492,126.38,126.35,0.8]
[1764598533670,58.62994492,126.38,126.35,0.8]
[1764598534602,58.62994492,126.38,126.35,5.68616539]
[1764598534603,3.52,126.38,126.35,5.68616539]
[1764598534754,3.52,126.38,126.36,0.7]
[1764598535668,3.52,126.38,126.36,5.58616539]
[1764598535910,12.32994492,126.4,126.36,0.7]
[1764598536082,17.91611031,126.4,126.36,0.7]
[1764598536274,13.02994492,126.4,126.36,0.7]
[1764598536476,10.57233078,126.42,126.37,4.88616539]
[1764598536809,3.52,126.41,126.37,4.88616539]
[1764598536974,4.22,126.41,126.38,0.7]
[1764598537178,4.22,126.41,126.37,4.88616539]
[1764598537578,8.40616539,126.41,126.36,0.7]
[1764598537795,0.7,126.4,126.36,5.58616539]
[1764598538185,0.7,126.4,126.37,0.7]
[1764598538990,8.80994492,126.44,126.39,4.88616539]
[1764598539198,0.7,126.43,126.39,4.88616539]
[1764598539396,0.7,126.43,126.39,0.7]
[1764598539583,4.88616539,126.41,126.36,16.308864]
[1764598539787,4.88616539,126.41,126.36,21.89502939]
[1764598539996,9.10616539,126.41,126.37,0.7]
[1764598540177,0.7,126.4,126.37,0.7]
[1764598540495,0.7,126.4,126.36,21.19502939]
[1764598540802,0.7,126.4,126.37,0.7]
[1764598542091,0.7,126.4,126.35,0.1]
[1764598542092,13.69611031,126.39,126.35,0.1]
[1764598542289,13.69611031,126.39,126.35,0.8]
[1764598542492,0.7,126.39,126.35,5.68616539]
[1764598542682,0.7,126.39,126.36,0.7]
[1764598545498,13.69611031,126.4,126.36,0.7]
[1764598545700,12.32994492,126.42,126.38,4.88616539]
[1764598546001,12.32994492,126.42,126.39,0.7]
[1764598546201,12.32994492,126.42,126.39,5.58616539]
[1764598546803,0.7,126.45,126.4,5.58616539]
[1764598547010,3.52,126.44,126.41,4.88616539]
[1764598547206,3.52,126.44,126.41,0.7]
[1764598547507,3.52,126.44,126.42,5.58616539]
[1764598548113,3.52,126.44,126.42,4.88616539]
[1764598548311,3.52,126.44,126.42,5.58616539]
[1764598548808,3.52,126.44,126.42,0.7]
[1764598550305,3.52,126.44,126.42,5.58616539]
[1764598550502,3.52,126.44,126.42,13.49623893]
[1764598551185,3.52,126.44,126.43,13.49568053]
[1764598551385,20.23711397,126.47,126.43,4.88616539]
[1764598551589,20.93711397,126.47,126.43,5.58616539]
[1764598552211,20.93711397,126.47,126.43,13.49565848]
[1764598552397,20.93711397,126.47,126.44,0.7]
[1764598552594,20.93711397,126.47,126.43,13.49565848]
[1764598552595,11.42716905,126.47,126.43,13.49565848]
[1764598552910,12.12716905,126.47,126.43,13.49565848]
[1764598553402,3.52,126.47,126.44,5.58616539]
[1764598553606,3.52,126.47,126.45,4.88616539]
[1764598553785,20.93611087,126.49,126.45,5.58616539]
[1764598554108,0.7,126.48,126.45,5.58616539]
[1764598554691,13.69611031,126.47,126.42,29.10510161]
[1764598554893,13.69611031,126.47,126.42,29.80510161]
[1764598555100,0.7,126.46,126.43,4.88616539]
[1764598555396,8.60792092,126.46,126.42,29.80510161]
[1764598556514,7.90792092,126.46,126.43,5.55616539]
[1764598558810,46.3,126.47,126.44,4.88616539]
[1764598559111,54.20704123,126.47,126.43,4.88616539]
[1764598559413,51.18616539,126.47,126.43,13.46560166]
[1764598559711,54.88704999,126.47,126.43,13.46560166]
[1764598559908,7.90704999,126.47,126.43,13.46560166]
[1764598560114,0.68,126.46,126.43,13.46560166]
[1764598560315,9.08616539,126.48,126.44,0.67]
[1764598560889,8.40616539,126.48,126.44,0.67]
[1764598561107,4.2,126.48,126.44,5.55616539]
[1764598561295,3.52,126.48,126.44,5.55616539]
[1764598561502,0.68,126.47,126.44,5.55616539]
[1764598562509,0.68,126.47,126.45,0.67]
[1764598562510,8.80994492,126.47,126.45,0.67]
[1764598563105,0.68,126.5,126.46,4.88616539]
[1764598563316,67.49502939,126.51,126.47,4.88616539]
[1764598563317,46.3,126.51,126.47,4.88616539]
[1764598563616,8.80994492,126.5,126.45,16.978864]
[1764598563907,9.48994492,126.5,126.46,4.88616539]
[1764598564115,9.48994492,126.5,126.46,5.55616539]
[1764598564315,7.9057633,126.49,126.46,5.55616539]
[1764598565714,7.9057633,126.49,126.46,13.46378116]
[1764598565918,11.4257633,126.49,126.46,7.90761577]
[1764598566128,12.1057633,126.49,126.46,7.90761577]
[1764598567320,12.1057633,126.49,126.46,8.57761577]
[1764598567493,12.1057633,126.49,126.46,7.90761577]
[1764598568419,9.48994492,126.48,126.45,24.21711201]
[1764598568730,17.39636829,126.48,126.45,24.21711201]
[1764598568902,8.80994492,126.46,126.42,5.55616539]
[1764598569420,9.48994492,126.46,126.43,4.88616539]
[1764598570139,46.3,126.47,126.44,5.55616539]
[1764598570310,46.98,126.47,126.44,4.88616539]
[1764598570721,46.98,126.47,126.45,7.90826413]
[1764598570931,0.68,126.47,126.45,7.90826413]
[1764598571427,8.80994492,126.48,126.45,12.79442952]
[1764598571641,46.3,126.49,126.46,5.55616539]
[1764598572201,46.98,126.49,126.46,5.55616539]
[1764598572722,46.98,126.49,126.46,13.46340195]
[1764598572921,46.3,126.49,126.46,13.46340195]
[1764598573235,54.20578739,126.49,126.46,0.67]
[1764598573451,46.98,126.49,126.45,12.79434864]
[1764598573659,46.3,126.49,126.46,0.67]
[1764598574142,46.98,126.49,126.46,0.67]
[1764598574343,54.20590308,126.49,126.45,7.90818325]
[1764598574514,54.88590308,126.49,126.45,11.7036895]
[1764598575537,16.13545117,126.48,126.43,28.01388539]
[1764598575929,0.68,126.47,126.43,24.88837914]
[1764598576130,0.68,126.47,126.43,27.34388539]
[1764598576321,16.13545117,126.48,126.44,0.67]
[1764598576520,62.43545117,126.48,126.44,0.67]
[1764598576721,67.21656072,126.48,126.44,8.57835103]
[1764598578035,8.80994492,126.46,126.42,3.79550625]
[1764598578235,8.80994492,126.46,126.43,7.90896432]
[1764598578449,8.80994492,126.46,126.43,8.57896432]
[1764598579348,16.71762065,126.46,126.43,11.70447057]
[1764598579519,0.68,126.47,126.44,0.67]
[1764598579725,8.80994492,126.47,126.44,3.79550625]
[1764598580826,16.71703891,126.47,126.44,11.70436111]
[1764598581322,17.39703891,126.47,126.44,11.70436111]
[1764598582928,17.39703891,126.47,126.44,11.03436111]
[1764598583130,17.39703891,126.47,126.44,7.90885486]
[1764598583748,17.39703891,126.47,126.44,8.57885486]
[1764598584242,17.39703891,126.47,126.43,8.57951514]
[1764598584641,0.68,126.46,126.43,7.90951514]
[1764598585042,0.68,126.46,126.43,8.57951514]
[1764598585430,3.12550625,126.45,126.41,7.91034149]
[1764598585631,3.80550625,126.46,126.41,8.58034149]
[1764598585831,4.2,126.45,126.41,7.91034149]
[1764598586131,4.2,126.45,126.41,8.63034149]
[1764598586334,12.1085482,126.45,126.41,7.91034149]
[1764598586522,0.69,126.44,126.41,7.91034149]
[1764598586727,8.80994492,126.43,126.4,7.91116774]
[1764598587146,8.80994492,126.43,126.39,0.72]
[1764598587345,0.69,126.42,126.39,0.72]
[1764598587548,7.33550625,126.42,126.38,7.91225373]
[1764598587848,8.80994492,126.39,126.36,7.91370722]
[1764598588147,15.45545117,126.39,126.36,7.91370722]
[1764598588347,11.70832546,126.38,126.35,0.1]
[1764598588551,10.3110682,126.38,126.35,0.1]
[1764598588763,19.77564633,126.42,126.36,3.12550625]
[1764598588932,8.80994492,126.41,126.37,3.80550625]
[1764598589132,8.80994492,126.41,126.38,0.68]
[1764598589741,8.80994492,126.41,126.35,3.62]
[1764598589946,8.80994492,126.39,126.36,8.59348624]
[1764598590150,8.80994492,126.39,126.36,0.68]
[1764598590355,15.45545117,126.39,126.35,16.408864]
[1764598590654,15.45545117,126.39,126.35,0.1]
[1764598590655,8.80994492,126.37,126.35,0.1]
[1764598591037,9.47994492,126.37,126.35,0.1]
[1764598592267,17.39347386,126.37,126.35,0.1]
[1764598592852,7.91239664,126.39,126.36,0.68]
[1764598593056,20.24234156,126.39,126.36,0.68]
[1764598594055,0.67,126.4,126.37,3.12550625]
[1764598594056,7.91167826,126.4,126.37,3.12550625]
[1764598594357,66.5408844,126.41,126.38,0.68]
[1764598594532,66.5408844,126.41,126.38,3.80550625]
[1764598594732,58.90545117,126.4,126.35,0.1]
[1764598595053,58.90545117,126.4,126.35,3.22550625]
[1764598595252,0.67,126.39,126.35,3.90550625]
[1764598595753,3.79550625,126.39,126.35,0.1]
[1764598596057,7.9138968,126.36,126.35,0.1]
[1764598596447,16.72340803,126.37,126.35,0.1]
[1764598596651,9.47994492,126.36,126.35,0.1]
[1764598596854,12.60545117,126.36,126.35,0.1]
[1764598597554,9.47994492,126.36,126.35,0.1]
[1764598597758,8.80994492,126.36,126.35,0.1]
[1764598597957,7.91346311,126.37,126.35,0.1]
[1764598597958,16.72340803,126.37,126.35,0.78]
[1764598598133,16.72340803,126.37,126.35,0.1]
[1764598598537,17.39340803,126.37,126.35,0.1]
[1764598599148,16.72340803,126.37,126.35,0.1]
[1764598599695,16.72340803,126.37,126.35,0.78]
[1764598599848,8.80994492,126.37,126.35,0.78]
[1764598600552,7.9122729,126.39,126.36,3.12550625]
[1764598600950,19.7760935,126.42,126.38,3.12550625]
[1764598601155,3.52,126.43,126.39,3.80550625]
[1764598601469,8.80994492,126.42,126.39,3.80550625]
[1764598601645,8.80994492,126.42,126.4,3.80550625]
[1764598601845,11.42965343,126.43,126.4,3.80550625]
[1764598602045,20.23820905,126.45,126.41,0.68]
[1764598602243,20.23820905,126.45,126.41,3.80550625]
[1764598602563,0.67,126.44,126.4,11.03632904]
[1764598602742,12.09826413,126.45,126.41,3.80550625]
[1764598603061,8.80994492,126.44,126.41,0.68]
[1764598603263,8.80994492,126.44,126.42,0.68]
[1764598603464,16.71903979,126.44,126.41,3.12550625]
[1764598603659,17.38903979,126.44,126.41,0.68]
[1764598605050,11.42851994,126.45,126.41,11.71589012]
[1764598605368,15.22402619,126.45,126.41,8.59038387]
[1764598606270,12.60545117,126.44,126.39,28.02616345]
[1764598606674,7.90951514,126.43,126.4,3.80550625]
[1764598606876,7.90951514,126.43,126.39,24.2206572]
[1764598606881,8.57951514,126.43,126.39,16.308864]
[1764598607079,8.57951514,126.43,126.35,0.92216157]
[1764598607080,3.12550625,126.41,126.37,0.68]
[1764598607375,62.42545117,126.42,126.37,3.80550625]
[1764598607749,59.29994492,126.42,126.38,3.80550625]
[1764598608156,59.29994492,126.42,126.39,0.68]
[1764598608776,7.91076655,126.41,126.39,0.68]
[1764598609149,8.58076655,126.41,126.37,11.71859749]
[1764598610156,12.60545117,126.4,126.36,16.308864]
[1764598610658,8.80994492,126.38,126.35,0.78]
[1764598611049,8.80994492,126.38,126.35,11.81994318]
[1764598611277,16.12545117,126.4,126.35,11.81994318]
[1764598611577,8.80994492,126.38,126.35,11.81994318]
[1764598612749,20.24145028,126.4,126.37,3.12550625]
[1764598612946,20.91145028,126.4,126.36,3.80550625]
[1764598613375,24.03695653,126.4,126.36,0.68]
[1764598613875,20.91145028,126.4,126.36,3.80550625]
[1764598614461,20.91145028,126.4,126.36,11.71888033]
[1764598614660,12.32994492,126.4,126.37,0.68]
[1764598614863,12.10048337,126.42,126.38,3.12550625]
[1764598615059,3.52,126.42,126.38,3.12550625]
[1764598615268,46.3,126.43,126.39,3.80550625]
[1764598615467,54.20958866,126.43,126.4,3.80550625]
[1764598615673,54.87958866,126.43,126.4,0.68]
[1764598618184,54.87958866,126.43,126.39,3.12550625]
[1764598618375,58.00509491,126.43,126.4,0.72]
[1764598618576,7.91076655,126.41,126.37,3.84550625]
[1764598618978,8.56076655,126.41,126.37,3.84550625]
[1764598619576,8.56076655,126.41,126.37,3.12550625]
[1764598619767,8.56076655,126.41,126.38,0.72]
[1764598620481,9.45994492,126.4,126.37,7.91325635]
[1764598620782,55.10994492,126.4,126.37,8.63325635]
[1764598620981,55.75994492,126.4,126.37,8.63325635]
[1764598621184,55.10994492,126.4,126.37,11.7587626]
[1764598621661,63.02163169,126.4,126.37,11.7587626]
[1764598622582,63.02163169,126.4,126.37,11.0387626]
[1764598622783,46.3,126.4,126.38,0.72]
[1764598623572,54.21156665,126.4,126.37,7.91325635]
[1764598623879,46.95,126.39,126.36,7.91386679]
[1764598624572,46.95,126.39,126.36,8.63386679]
[1764598624769,54.86210939,126.39,126.36,8.63386679]
[1764598626987,46.3,126.39,126.37,0.72]
[1764598627156,46.3,126.39,126.38,3.12550625]
[1764598627362,46.3,126.39,126.38,3.84550625]
[1764598628284,46.3,126.39,126.38,11.75815065]
[1764598630084,63.67012254,126.42,126.38,11.75815065]
[1764598630788,63.67012254,126.42,126.39,0.72]
[1764598631382,63.02012254,126.42,126.39,11.75748812]
[1764598631589,46.3,126.42,126.39,11.75748812]
[1764598631990,46.3,126.42,126.36,16.308864]
[1764598631991,3.12550625,126.4,126.36,16.308864]
[1764598632288,40.18766547,126.42,126.35,0.1]
[1764598632289,8.80994492,126.37,126.35,0.1]
[1764598632467,11.93545117,126.36,126.35,0.1]
[1764598632667,12.58545117,126.36,126.35,0.1]
[1764598632867,20.49934797,126.36,126.35,0.1]
[1764598633184,24.01934797,126.36,126.35,0.1]
[1764598636388,25.78802311,126.36,126.35,0.1]
[1764598636688,17.87412631,126.36,126.35,0.1]
[1764598636890,25.78802311,126.36,126.35,0.1]
[1764598637089,3.52,126.38,126.35,0.82]
[1764598637278,12.32994492,126.4,126.36,4.89418139]
[1764598637774,17.22412631,126.4,126.36,0.72]
[1764598638093,0.65,126.39,126.36,0.72]
[1764598638578,17.22412631,126.4,126.36,0.72]
[1764598638892,7.91201835,126.39,126.36,0.72]
[1764598639289,17.87412631,126.4,126.36,13.52803515]
[1764598639619,3.52,126.4,126.36,13.52803515]
[1764598639896,7.91124657,126.41,126.38,4.89418139]
[1764598640094,12.80542796,126.41,126.37,0.72]
[1764598640300,13.45542796,126.41,126.37,0.72]
[1764598640473,23.08352669,126.4,126.37,0.72]
[1764598640670,22.43352669,126.4,126.37,0.72]
[1764598640884,30.34523828,126.4,126.37,0.72]
[1764598641194,21.53456279,126.41,126.37,8.63290623]
[1764598641495,13.62358177,126.39,126.37,0.72]
[1764598641992,13.62358177,126.39,126.35,24.32309346]
[1764598642174,22.43352669,126.38,126.35,0.82]
[1764598642873,30.34644006,126.38,126.35,0.1]
[1764598643076,13.62358177,126.37,126.35,0.1]
[1764598643273,13.62358177,126.37,126.35,0.82]
[1764598643467,22.43352669,126.36,126.35,0.1]
[1764598644963,30.34742349,126.36,126.35,0.1]
[1764598646165,31.03742349,126.36,126.35,0.1]
[1764598646394,34.55742349,126.36,126.35,0.1]
[1764598648274,3.52,126.36,126.35,0.1]
[1764598648985,16.72288264,126.38,126.35,0.77]
[1764598649188,30.34646441,126.38,126.35,0.77]
[1764598649702,16.72288264,126.38,126.35,0.77]
[1764598650275,16.72288264,126.38,126.35,8.68444961]
[1764598650474,16.72288264,126.38,126.36,0.7]
[1764598650681,8.80994492,126.38,126.36,0.7]
[1764598651396,3.52,126.39,126.36,0.7]
[1764598651587,23.09352669,126.38,126.35,0.1]
[1764598651990,23.09352669,126.38,126.35,0.8]
[1764598652399,13.62358177,126.37,126.35,0.1]
[1764598652574,22.43352669,126.36,126.35,0.1]
[1764598652774,23.09352669,126.36,126.35,0.1]
[1764598653771,23.23568826,126.36,126.35,0.1]
[1764598654099,31.14958506,126.36,126.35,0.1]
[1764598656303,17.38384172,126.36,126.35,0.1]